[Event "Live Chess"]
[Site "Chess.com"]
[Date "2023.05.20"]
[Round "-"]
[White "ramses-IIG"]
[Black "SaraTang"]
[Result "1-0"]
[WhiteElo "744"]
[BlackElo "164"]
[TimeControl "300"]
[EndTime "9:43:04 PDT"]
[Termination "ramses-IIG won by checkmate"]

1. e4 {[%clk 0:04:57.5]} 1... e5 {[%clk 0:04:58.3]} 2. Nf3 {[%clk 0:04:57.4]}
2... Nc6 {[%clk 0:04:56.4]} 3. Bc4 {[%clk 0:04:55.5]} 3... Bc5 {[%clk
0:04:53.8]} 4. d3 {[%clk 0:04:54.6]} 4... d6 {[%clk 0:04:51.8]} 5. c3 {[%clk
0:04:50.9]} 5... Nf6 {[%clk 0:04:47.4]} 6. Ng5 {[%clk 0:04:49.3]} 6... O-O
{[%clk 0:04:43.3]} 7. h4 {[%clk 0:04:46.9]} 7... h6 {[%clk 0:04:40.3]} 8. d4
{[%clk 0:04:39.8]} 8... hxg5 {[%clk 0:04:38.2]} 9. hxg5 {[%clk 0:04:38]} 9...
Nxe4 {[%clk 0:04:30.3]} 10. Qh5 {[%clk 0:04:37.5]} 10... g6 {[%clk 0:04:22.5]}
11. Qh8# {[%clk 0:04:35.5]} 1-0

[Event "Live Chess"]
[Site "Chess.com"]
[Date "2023.05.20"]
[Round "-"]
[White "VovaOvchar1990"]
[Black "friarnator"]
[Result "0-1"]
[WhiteElo "1201"]
[BlackElo "1978"]
[TimeControl "300"]
[EndTime "9:43:05 PDT"]
[Termination "friarnator won by resignation"]

1. e4 {[%clk 0:04:58.4]} 1... Nf6 {[%clk 0:04:58.5]} 2. Bc4 {[%clk 0:04:57.7]}
2... Nxe4 {[%clk 0:04:57.2]} 3. d3 {[%clk 0:04:48.9]} 3... Nf6 {[%clk
0:04:55.7]} 4. Nf3 {[%clk 0:04:47.8]} 4... d5 {[%clk 0:04:55.4]} 5. Bb3 {[%clk
0:04:46.2]} 5... Bg4 {[%clk 0:04:54.3]} 6. O-O {[%clk 0:04:46.1]} 6... e6 {[%clk
0:04:53.5]} 7. h3 {[%clk 0:04:43.8]} 7... Bh5 {[%clk 0:04:52.2]} 8. Nbd2 {[%clk
0:04:41.6]} 8... Be7 {[%clk 0:04:51.4]} 9. Qe1 {[%clk 0:04:40.6]} 9... O-O
{[%clk 0:04:50.4]} 10. Nh2 {[%clk 0:04:39.5]} 10... c5 {[%clk 0:04:49.7]} 11. c3
{[%clk 0:04:37.5]} 11... d4 {[%clk 0:04:47.4]} 12. c4 {[%clk 0:04:29.5]} 12...
Nc6 {[%clk 0:04:46.4]} 13. Ndf3 {[%clk 0:04:27.1]} 13... Bg6 {[%clk 0:04:43.6]}
14. Ne5 {[%clk 0:04:23.6]} 14... Nxe5 {[%clk 0:04:30.6]} 15. Qxe5 {[%clk
0:04:23.5]} 15... Bxd3 {[%clk 0:04:30.1]} 16. Qg3 {[%clk 0:04:08.5]} 16... Bxf1
{[%clk 0:04:27.2]} 17. Nxf1 {[%clk 0:04:01.8]} 17... Bd6 {[%clk 0:04:25.6]} 18.
Bf4 {[%clk 0:03:54.8]} 18... Nh5 {[%clk 0:04:23]} 19. Qh2 {[%clk 0:03:48.3]}
19... Bxf4 {[%clk 0:04:21.2]} 0-1

[Event "Live Chess"]
[Site "Chess.com"]
[Date "2023.05.20"]
[Round "-"]
[White "Pandreq"]
[Black "lateforthesky"]
[Result "0-1"]
[WhiteElo "1257"]
[BlackElo "2077"]
[TimeControl "300"]
[EndTime "9:43:06 PDT"]
[Termination "lateforthesky won by resignation"]

1. d4 {[%clk 0:04:57.4]} 1... Nf6 {[%clk 0:04:58.3]} 2. c4 {[%clk 0:04:56]} 2...
g6 {[%clk 0:04:57.7]} 3. Nc3 {[%clk 0:04:54.8]} 3... Bg7 {[%clk 0:04:57]} 4. Bf4
{[%clk 0:04:53]} 4... d6 {[%clk 0:04:55.9]} 5. e3 {[%clk 0:04:52]} 5... O-O
{[%clk 0:04:54]} 6. Nf3 {[%clk 0:04:42.9]} 6... Nc6 {[%clk 0:04:50.3]} 7. d5
{[%clk 0:04:28.7]} 7... e5 {[%clk 0:04:48.4]} 8. dxe6 {[%clk 0:04:03.6]} 8...
fxe6 {[%clk 0:04:40.3]} 9. Nd4 {[%clk 0:03:39]} 9... Bd7 {[%clk 0:04:27.9]} 10.
Nxc6 {[%clk 0:03:23.8]} 10... Bxc6 {[%clk 0:04:25]} 11. b4 {[%clk 0:03:07.9]}
11... Nh5 {[%clk 0:04:16.9]} 12. Ne2 {[%clk 0:02:48.1]} 12... Bxa1 {[%clk
0:04:12.9]} 13. Qxa1 {[%clk 0:02:40.2]} 13... Nxf4 {[%clk 0:04:11.6]} 14. Nxf4
{[%clk 0:02:38.3]} 14... Qe7 {[%clk 0:04:10.5]} 15. Bd3 {[%clk 0:02:26.3]} 15...
e5 {[%clk 0:04:07.5]} 16. Nxg6 {[%clk 0:02:06.4]} 16... hxg6 {[%clk 0:04:04.6]}
17. Bxg6 {[%clk 0:02:04.6]} 17... Qg5 {[%clk 0:03:56.5]} 18. Qb1 {[%clk
0:01:36]} 18... Qxg2 {[%clk 0:03:43.6]} 19. Bh7+ {[%clk 0:01:19.5]} 19... Kh8
{[%clk 0:03:42]} 20. Rf1 {[%clk 0:01:02.7]} 20... Rf7 {[%clk 0:03:39.2]} 21. Bg6
{[%clk 0:00:57.3]} 21... Rg7 {[%clk 0:03:38.1]} 22. b5 {[%clk 0:00:45.1]} 22...
Bf3 {[%clk 0:03:33.5]} 23. Bf5 {[%clk 0:00:33.1]} 23... Rag8 {[%clk 0:03:29.2]}
24. Be6 {[%clk 0:00:26.4]} 24... Qxf1+ {[%clk 0:03:27.2]} 0-1

[Event "Live Chess"]
[Site "Chess.com"]
[Date "2023.05.20"]
[Round "-"]
[White "GMHarry-youtube"]
[Black "LL220284LL"]
[Result "1/2-1/2"]
[WhiteElo "2177"]
[BlackElo "2405"]
[TimeControl "300"]
[EndTime "9:43:16 PDT"]
[Termination "Game drawn by stalemate"]

1. e4 {[%clk 0:04:55.6]} 1... g6 {[%clk 0:04:58.9]} 2. d4 {[%clk 0:04:52.6]}
2... Bg7 {[%clk 0:04:58.2]} 3. c4 {[%clk 0:04:51.8]} 3... c5 {[%clk 0:04:55.6]}
4. d5 {[%clk 0:04:50.4]} 4... d6 {[%clk 0:04:54.1]} 5. Nc3 {[%clk 0:04:49.3]}
5... f5 {[%clk 0:04:52.6]} 6. f3 {[%clk 0:04:47.9]} 6... Nf6 {[%clk 0:04:50.1]}
7. Bd3 {[%clk 0:04:45.8]} 7... fxe4 {[%clk 0:04:48.7]} 8. Nxe4 {[%clk
0:04:44.3]} 8... Nxe4 {[%clk 0:04:46.1]} 9. fxe4 {[%clk 0:04:44.2]} 9... O-O
{[%clk 0:04:45.4]} 10. Nf3 {[%clk 0:04:41.2]} 10... e6 {[%clk 0:04:41.2]} 11.
O-O {[%clk 0:04:39.8]} 11... exd5 {[%clk 0:04:40.1]} 12. exd5 {[%clk 0:04:39.2]}
12... Bg4 {[%clk 0:04:33]} 13. h3 {[%clk 0:04:36.3]} 13... Bf5 {[%clk
0:04:32.1]} 14. Bg5 {[%clk 0:04:32.9]} 14... Qc8 {[%clk 0:04:26.4]} 15. g4
{[%clk 0:04:26.9]} 15... Bxd3 {[%clk 0:04:23.4]} 16. Qxd3 {[%clk 0:04:25.4]}
16... Nd7 {[%clk 0:04:23.1]} 17. Be7 {[%clk 0:04:23.3]} 17... Ne5 {[%clk
0:04:16.9]} 18. Nxe5 {[%clk 0:04:19.3]} 18... Rxf1+ {[%clk 0:04:16.4]} 19. Rxf1
{[%clk 0:04:16]} 19... Bxe5 {[%clk 0:04:16.3]} 20. Bf6 {[%clk 0:04:11.6]} 20...
Qe8 {[%clk 0:04:09.8]} 21. Re1 {[%clk 0:04:08.1]} 21... Bd4+ {[%clk 0:04:07.2]}
22. Kf1 {[%clk 0:04:07.2]} 22... Qf7 {[%clk 0:04:03]} 23. g5 {[%clk 0:04:06.2]}
23... Bxf6 {[%clk 0:03:58.3]} 24. gxf6 {[%clk 0:04:02.1]} 24... Qxf6+ {[%clk
0:03:58.2]} 25. Kg1 {[%clk 0:03:59.9]} 25... Rf8 {[%clk 0:03:56.7]} 26. Re6
{[%clk 0:03:50.3]} 26... Qf2+ {[%clk 0:03:43.3]} 27. Kh1 {[%clk 0:03:48.6]}
27... Rf3 {[%clk 0:03:42.5]} 28. Rxg6+ {[%clk 0:03:38.6]} 28... Kh8 {[%clk
0:03:26.7]} 29. Qxf3 {[%clk 0:03:26.5]} 29... Qxf3+ {[%clk 0:03:24.4]} 30. Rg2
{[%clk 0:03:26.4]} 30... Qxh3+ {[%clk 0:03:23.1]} 31. Kg1 {[%clk 0:03:25.4]}
31... Qe3+ {[%clk 0:03:21.4]} 32. Kh1 {[%clk 0:03:23.6]} 32... Qc1+ {[%clk
0:03:20.1]} 33. Kh2 {[%clk 0:03:21.2]} 33... Qxc4 {[%clk 0:03:19.7]} 34. Rg5
{[%clk 0:03:14.6]} 34... Qxa2 {[%clk 0:03:17]} 35. Rg3 {[%clk 0:03:14.5]} 35...
Qxb2+ {[%clk 0:03:15.5]} 36. Kh3 {[%clk 0:03:12.5]} 36... Qe5 {[%clk 0:03:14]}
37. Kh2 {[%clk 0:03:11.4]} 37... c4 {[%clk 0:03:12.7]} 38. Kg2 {[%clk
0:03:09.1]} 38... Qxg3+ {[%clk 0:03:11.8]} 39. Kh1 {[%clk 0:03:08.6]} 39... c3
{[%clk 0:03:11.7]} 1/2-1/2

[Event "Live Chess"]
[Site "Chess.com"]
[Date "2023.05.20"]
[Round "-"]
[White "BillW-GrangerIN"]
[Black "Brooms1989"]
[Result "0-1"]
[WhiteElo "179"]
[BlackElo "966"]
[TimeControl "300"]
[EndTime "9:43:28 PDT"]
[Termination "Brooms1989 won by resignation"]

1. e4 {[%clk 0:04:56.3]} 1... e5 {[%clk 0:04:57.1]} 2. Nf3 {[%clk 0:04:51.8]}
2... Nc6 {[%clk 0:04:55.3]} 3. Bc4 {[%clk 0:04:48.6]} 3... Nf6 {[%clk
0:04:53.8]} 4. c3 {[%clk 0:04:38.8]} 4... Nxe4 {[%clk 0:04:45.9]} 5. O-O {[%clk
0:04:29.1]} 5... d5 {[%clk 0:04:42.7]} 6. d4 {[%clk 0:04:14]} 6... dxc4 {[%clk
0:04:30.6]} 7. dxe5 {[%clk 0:04:06.6]} 7... Qxd1 {[%clk 0:04:30.5]} 8. Rxd1
{[%clk 0:04:03.2]} 8... Bc5 {[%clk 0:04:25.2]} 9. Kf1 {[%clk 0:03:51.3]} 9...
Nxf2 {[%clk 0:04:18.4]} 10. Rd5 {[%clk 0:03:38.8]} 10... Bb6 {[%clk 0:04:12.2]}
11. Nbd2 {[%clk 0:03:33.5]} 11... Be6 {[%clk 0:04:06.1]} 0-1

[Event "Live Chess"]
[Site "Chess.com"]
[Date "2023.05.20"]
[Round "-"]
[White "OceanFloater"]
[Black "Misha145Chess"]
[Result "1-0"]
[WhiteElo "984"]
[BlackElo "584"]
[TimeControl "300"]
[EndTime "9:43:29 PDT"]
[Termination "OceanFloater won on time"]

1. e4 {[%clk 0:04:59.3]} 1... e5 {[%clk 0:04:59.1]} 2. Nf3 {[%clk 0:04:57.4]}
2... Nc6 {[%clk 0:04:58.1]} 3. Bc4 {[%clk 0:04:56.4]} 3... h6 {[%clk 0:04:52.8]}
4. Nc3 {[%clk 0:04:55.9]} 4... Nf6 {[%clk 0:04:51.7]} 5. d3 {[%clk 0:04:54]}
5... Bb4 {[%clk 0:04:50.6]} 6. Bd2 {[%clk 0:04:52.6]} 6... O-O {[%clk
0:04:47.3]} 7. a3 {[%clk 0:04:51.7]} 7... Ba5 {[%clk 0:04:46.1]} 8. b4 {[%clk
0:04:50.8]} 8... Bb6 {[%clk 0:04:45.5]} 9. b5 {[%clk 0:04:49.8]} 9... Na5 {[%clk
0:04:43.1]} 10. Ba2 {[%clk 0:04:48.7]} 10... Re8 {[%clk 0:04:38]} 11. Na4 {[%clk
0:04:43.3]} 11... Bd4 {[%clk 0:04:33.2]} 12. c3 {[%clk 0:04:36.7]} 12... Bb6
{[%clk 0:04:17.5]} 13. Nxb6 {[%clk 0:04:34.8]} 13... axb6 {[%clk 0:04:17.4]} 14.
c4 {[%clk 0:04:33]} 14... d6 {[%clk 0:04:00.4]} 15. O-O {[%clk 0:04:31]} 15...
Bg4 {[%clk 0:03:54.2]} 16. h3 {[%clk 0:04:29.9]} 16... Bh5 {[%clk 0:03:52.5]}
17. Re1 {[%clk 0:04:10.3]} 17... c6 {[%clk 0:03:34.9]} 18. Re3 {[%clk
0:04:04.5]} 18... d5 {[%clk 0:03:29.7]} 19. exd5 {[%clk 0:04:03.2]} 19... cxd5
{[%clk 0:03:27.1]} 20. cxd5 {[%clk 0:04:00.9]} 20... Nxd5 {[%clk 0:03:25.3]} 21.
Rxe5 {[%clk 0:03:58.3]} 21... Rxe5 {[%clk 0:03:23.5]} 22. Bxd5 {[%clk
0:03:50.3]} 22... Qxd5 {[%clk 0:03:18.8]} 23. Bxa5 {[%clk 0:03:48.3]} 23... bxa5
{[%clk 0:03:16.1]} 24. g4 {[%clk 0:03:46.2]} 24... Ree8 {[%clk 0:02:29.6]} 25.
gxh5 {[%clk 0:03:43]} 25... Qxh5 {[%clk 0:02:24.1]} 26. Kh2 {[%clk 0:03:41.3]}
26... g5 {[%clk 0:02:04.7]} 27. Kg2 {[%clk 0:03:32.9]} 27... g4 {[%clk
0:02:01.1]} 28. hxg4 {[%clk 0:03:26.2]} 28... Qxg4+ {[%clk 0:02:00]} 29. Kf1
{[%clk 0:03:24.2]} 29... Qh3+ {[%clk 0:01:54.7]} 30. Kg1 {[%clk 0:03:21.5]}
30... Rad8 {[%clk 0:01:24.5]} 31. d4 {[%clk 0:03:01.1]} 31... Qg4+ {[%clk
0:01:15.1]} 32. Kf1 {[%clk 0:02:57.3]} 32... h5 {[%clk 0:00:52.4]} 33. Qd3
{[%clk 0:02:51.6]} 33... h4 {[%clk 0:00:50.4]} 34. Re1 {[%clk 0:02:44.4]} 34...
Rxe1+ {[%clk 0:00:48.3]} 35. Kxe1 {[%clk 0:02:30.1]} 35... h3 {[%clk 0:00:45.5]}
36. Ke2 {[%clk 0:02:15.8]} 36... Qe6+ {[%clk 0:00:37.9]} 37. Ne5 {[%clk
0:02:09.7]} 37... Qxe5+ {[%clk 0:00:29.7]} 38. Kf1 {[%clk 0:02:00.5]} 38... Qxd4
{[%clk 0:00:27.1]} 39. Qxh3 {[%clk 0:01:57.2]} 39... Qd1+ {[%clk 0:00:18.1]} 40.
Kg2 {[%clk 0:01:55.8]} 40... Qd5+ {[%clk 0:00:12.5]} 41. f3 {[%clk 0:01:53.3]}
41... Qxb5 {[%clk 0:00:11]} 42. Qg4+ {[%clk 0:01:52.2]} 42... Kf8 {[%clk
0:00:09.7]} 43. Qf4 {[%clk 0:01:38.5]} 43... Rd2+ {[%clk 0:00:06.9]} 44. Kg3
{[%clk 0:01:37.3]} 44... Rd8 {[%clk 0:00:04.7]} 45. Qh6+ {[%clk 0:01:34.8]}
45... Ke8 {[%clk 0:00:03.2]} 46. Qh8+ {[%clk 0:01:33.3]} 46... Kd7 {[%clk
0:00:01.7]} 47. Qh3+ {[%clk 0:01:32.2]} 1-0

[Event "Live Chess"]
[Site "Chess.com"]
[Date "2023.05.20"]
[Round "-"]
[White "CocheseUK"]
[Black "thrithik"]
[Result "1-0"]
[WhiteElo "1117"]
[BlackElo "457"]
[TimeControl "300"]
[EndTime "9:43:31 PDT"]
[Termination "CocheseUK won by checkmate"]

1. e4 {[%clk 0:04:54.5]} 1... Nc6 {[%clk 0:04:58.5]} 2. d4 {[%clk 0:04:51.3]}
2... Nxd4 {[%clk 0:04:57.4]} 3. Qxd4 {[%clk 0:04:48.9]} 3... d6 {[%clk
0:04:55.2]} 4. Nc3 {[%clk 0:04:39.8]} 4... c5 {[%clk 0:04:54.6]} 5. Qe3 {[%clk
0:04:28.6]} 5... b6 {[%clk 0:04:45.8]} 6. Bb5+ {[%clk 0:04:22.5]} 6... Bd7
{[%clk 0:04:42]} 7. Bxd7+ {[%clk 0:04:19.3]} 7... Kxd7 {[%clk 0:04:39.7]} 8. Bd2
{[%clk 0:04:16.9]} 8... Ke8 {[%clk 0:04:38.7]} 9. O-O-O {[%clk 0:04:14.7]} 9...
Qc7 {[%clk 0:04:37.5]} 10. Nf3 {[%clk 0:04:10.7]} 10... Qc6 {[%clk 0:04:36.2]}
11. Nd5 {[%clk 0:04:02.4]} 11... Qa4 {[%clk 0:04:31.9]} 12. Nc7+ {[%clk
0:03:59.3]} 12... Kd8 {[%clk 0:04:28.5]} 13. Nxa8 {[%clk 0:03:51.1]} 13... Qxa2
{[%clk 0:04:28.1]} 14. Bc3 {[%clk 0:03:44.3]} 14... Qa1+ {[%clk 0:04:23.2]} 15.
Kd2 {[%clk 0:03:42.9]} 15... e5 {[%clk 0:04:18.9]} 16. Rxa1 {[%clk 0:03:40.2]}
16... Be7 {[%clk 0:04:15.7]} 17. Nxb6 {[%clk 0:03:32.2]} 17... axb6 {[%clk
0:04:12.8]} 18. Ra8+ {[%clk 0:03:29.3]} 18... Kc7 {[%clk 0:04:10.6]} 19. Nxe5
{[%clk 0:03:26.8]} 19... Kb7 {[%clk 0:04:09.4]} 20. Rha1 {[%clk 0:03:23.6]}
20... dxe5 {[%clk 0:04:04.6]} 21. Bxe5 {[%clk 0:03:21.7]} 21... Bh4 {[%clk
0:04:01.5]} 22. Qh3 {[%clk 0:03:11.6]} 22... Bxf2 {[%clk 0:03:59.2]} 23. Qd7#
{[%clk 0:03:09.6]} 1-0

[Event "Live Chess"]
[Site "Chess.com"]
[Date "2023.05.20"]
[Round "-"]
[White "aliciabutteriss"]
[Black "toxic_rabbit"]
[Result "0-1"]
[WhiteElo "511"]
[BlackElo "1988"]
[TimeControl "300"]
[EndTime "9:43:38 PDT"]
[Termination "toxic_rabbit won by resignation"]

1. e4 {[%clk 0:04:56.2]} 1... e6 {[%clk 0:04:59.3]} 2. d4 {[%clk 0:04:53.5]}
2... d5 {[%clk 0:04:58.1]} 3. Nc3 {[%clk 0:04:48.6]} 3... Nf6 {[%clk 0:04:56.4]}
4. e5 {[%clk 0:04:46.9]} 4... Nfd7 {[%clk 0:04:55.8]} 5. f4 {[%clk 0:04:42.6]}
5... c5 {[%clk 0:04:54.6]} 6. dxc5 {[%clk 0:04:37.8]} 6... Bxc5 {[%clk
0:04:52.7]} 7. Bd2 {[%clk 0:04:22.4]} 7... Nc6 {[%clk 0:04:49.9]} 8. Qe2 {[%clk
0:04:14.2]} 8... Nd4 {[%clk 0:04:44]} 9. Qg4 {[%clk 0:04:01]} 9... Nxc2+ {[%clk
0:04:33.5]} 10. Kd1 {[%clk 0:03:59.5]} 10... Nxa1 {[%clk 0:04:31]} 11. Qxg7
{[%clk 0:03:55.8]} 11... Rf8 {[%clk 0:04:28.6]} 12. Qxh7 {[%clk 0:03:50.3]}
12... Bb4 {[%clk 0:04:23.5]} 13. Bb5 {[%clk 0:03:33.7]} 13... a6 {[%clk
0:04:20.1]} 14. Bxd7+ {[%clk 0:03:31.6]} 14... Bxd7 {[%clk 0:04:18.7]} 15. Nf3
{[%clk 0:03:20.3]} 15... Bxc3 {[%clk 0:04:16.4]} 16. Bxc3 {[%clk 0:03:18.7]}
16... Ba4+ {[%clk 0:04:14.8]} 17. Kc1 {[%clk 0:03:13.8]} 17... Bc2 {[%clk
0:04:03]} 18. Nd4 {[%clk 0:03:01.8]} 18... Bxh7 {[%clk 0:04:01.5]} 19. b3 {[%clk
0:02:49.5]} 19... Rc8 {[%clk 0:03:55.2]} 20. g4 {[%clk 0:02:38]} 20... Rxc3+
{[%clk 0:03:53.2]} 21. Nc2 {[%clk 0:02:34]} 21... Rxc2+ {[%clk 0:03:52.1]} 0-1

[Event "Live Chess"]
[Site "Chess.com"]
[Date "2023.05.20"]
[Round "-"]
[White "xx_blindpuffin_xx"]
[Black "TDCMF"]
[Result "1-0"]
[WhiteElo "2188"]
[BlackElo "340"]
[TimeControl "300"]
[EndTime "9:43:42 PDT"]
[Termination "xx_blindpuffin_xx won on time"]

1. e4 {[%clk 0:04:58.2]} 1... e5 {[%clk 0:04:58.5]} 2. Nf3 {[%clk 0:04:57.4]}
2... Nc6 {[%clk 0:04:54.2]} 3. Bc4 {[%clk 0:04:56.3]} 3... Nh6 {[%clk
0:04:44.6]} 4. d3 {[%clk 0:04:54.1]} 4... d6 {[%clk 0:04:43.1]} 5. Bxh6 {[%clk
0:04:49.8]} 5... gxh6 {[%clk 0:04:41.3]} 6. Nc3 {[%clk 0:04:36.9]} 6... Be6
{[%clk 0:04:34.6]} 7. Nd5 {[%clk 0:04:32.7]} 7... Rc8 {[%clk 0:03:58.4]} 8. a3
{[%clk 0:04:17.5]} 8... a6 {[%clk 0:03:49.1]} 9. c3 {[%clk 0:04:16.1]} 9... b5
{[%clk 0:03:47.9]} 10. Ba2 {[%clk 0:04:15]} 10... Na5 {[%clk 0:03:24.6]} 11. Nd2
{[%clk 0:04:10.2]} 11... c6 {[%clk 0:03:20.5]} 12. Nb4 {[%clk 0:04:08]} 12...
Qb6 {[%clk 0:02:44.6]} 13. Bxe6 {[%clk 0:04:05.2]} 13... fxe6 {[%clk 0:02:43.2]}
14. Qh5+ {[%clk 0:04:03.8]} 14... Ke7 {[%clk 0:02:29.9]} 15. Qh4+ {[%clk
0:04:02.4]} 15... Ke8 {[%clk 0:02:28.4]} 16. Qf6 {[%clk 0:04:00.5]} 16... Rg8
{[%clk 0:02:22.6]} 17. Qxe6+ {[%clk 0:03:59.5]} 17... Be7 {[%clk 0:02:18.3]} 18.
Qxg8+ {[%clk 0:03:45.9]} 18... Kd7 {[%clk 0:02:15.2]} 19. Qxh7 {[%clk
0:03:44.8]} 19... Rf8 {[%clk 0:02:08]} 20. O-O {[%clk 0:03:42.5]} 20... Kd8
{[%clk 0:01:26.8]} 21. a4 {[%clk 0:03:38.3]} 21... Bh4 {[%clk 0:01:15.4]} 22.
Nf3 {[%clk 0:03:23.4]} 22... Nb3 {[%clk 0:00:24.4]} 23. axb5 {[%clk 0:03:16]}
23... Nxa1 {[%clk 0:00:20.4]} 24. Nxc6+ {[%clk 0:03:13.9]} 24... Kc8 {[%clk
0:00:18.3]} 25. Nxh4 {[%clk 0:03:11]} 25... Qxb5 {[%clk 0:00:05.4]} 26. Na7+
{[%clk 0:03:08.3]} 26... Kb8 {[%clk 0:00:03.6]} 27. Nxb5 {[%clk 0:03:08.2]}
27... Rxf2 {[%clk 0:00:01.2]} 28. Rxf2 {[%clk 0:03:06.8]} 1-0

[Event "Live Chess"]
[Site "Chess.com"]
[Date "2023.05.20"]
[Round "-"]
[White "EdenHazard8"]
[Black "koljadar"]
[Result "1-0"]
[WhiteElo "2122"]
[BlackElo "1520"]
[TimeControl "300"]
[EndTime "9:43:49 PDT"]
[Termination "EdenHazard8 won by checkmate"]

1. e4 {[%clk 0:04:57.4]} 1... e6 {[%clk 0:04:59.9]} 2. d4 {[%clk 0:04:56]} 2...
d5 {[%clk 0:04:59.8]} 3. Nd2 {[%clk 0:04:55.4]} 3... dxe4 {[%clk 0:04:57.3]} 4.
Nxe4 {[%clk 0:04:55.3]} 4... Nf6 {[%clk 0:04:56.4]} 5. Nxf6+ {[%clk 0:04:54.7]}
5... Qxf6 {[%clk 0:04:56.3]} 6. Nf3 {[%clk 0:04:53.5]} 6... b6 {[%clk
0:04:54.1]} 7. Bd3 {[%clk 0:04:52.8]} 7... h6 {[%clk 0:04:51]} 8. Be4 {[%clk
0:04:49.5]} 8... c6 {[%clk 0:04:47.6]} 9. c3 {[%clk 0:04:45.9]} 9... Bb7 {[%clk
0:04:46.5]} 10. Be3 {[%clk 0:04:43.8]} 10... Nd7 {[%clk 0:04:37.7]} 11. Qc2
{[%clk 0:04:42.4]} 11... O-O-O {[%clk 0:04:34]} 12. O-O-O {[%clk 0:04:41.3]}
12... Kb8 {[%clk 0:04:33]} 13. h4 {[%clk 0:04:40]} 13... Bd6 {[%clk 0:04:24.4]}
14. g3 {[%clk 0:04:30.3]} 14... Qe7 {[%clk 0:04:14.9]} 15. Qa4 {[%clk 0:04:22]}
15... f5 {[%clk 0:04:07.2]} 16. Bxc6 {[%clk 0:04:17.1]} 16... Nf6 {[%clk
0:03:54.9]} 17. Bxb7 {[%clk 0:04:13.8]} 17... Kxb7 {[%clk 0:03:54.8]} 18. Bf4
{[%clk 0:03:59]} 18... Ne4 {[%clk 0:03:49.5]} 19. Bxd6 {[%clk 0:03:52.8]} 19...
Qxd6 {[%clk 0:03:47.9]} 20. Rhf1 {[%clk 0:03:50]} 20... Rc8 {[%clk 0:03:38.9]}
21. Ne5 {[%clk 0:03:47.3]} 21... Rhf8 {[%clk 0:03:32.7]} 22. Kb1 {[%clk
0:03:34.9]} 22... g5 {[%clk 0:03:26.4]} 23. hxg5 {[%clk 0:03:32.3]} 23... hxg5
{[%clk 0:03:26.3]} 24. Rh1 {[%clk 0:03:30.4]} 24... Nxf2 {[%clk 0:03:22.1]} 25.
Rh7+ {[%clk 0:03:28.4]} 25... Rc7 {[%clk 0:03:08.2]} 26. Rxc7+ {[%clk
0:03:25.5]} 26... Qxc7 {[%clk 0:03:08.1]} 27. Rf1 {[%clk 0:03:18]} 27... Ne4
{[%clk 0:03:06.4]} 28. g4 {[%clk 0:03:11.7]} 28... Nd2+ {[%clk 0:03:04.4]} 29.
Kc2 {[%clk 0:03:05.6]} 29... Nxf1 {[%clk 0:03:04.3]} 30. Qb4 {[%clk 0:03:00.5]}
30... Rh8 {[%clk 0:03:00.5]} 31. gxf5 {[%clk 0:02:49]} 31... Ne3+ {[%clk
0:02:58.8]} 32. Kb3 {[%clk 0:02:46.9]} 32... Nxf5 {[%clk 0:02:58.7]} 33. a4
{[%clk 0:02:23.6]} 33... Qd6 {[%clk 0:02:55.9]} 34. Qb5 {[%clk 0:02:20.9]} 34...
a6 {[%clk 0:02:37.5]} 35. Qe2 {[%clk 0:02:16.7]} 35... Qd5+ {[%clk 0:02:31]} 36.
Ka3 {[%clk 0:02:07]} 36... Rg8 {[%clk 0:02:22.2]} 37. Qh5 {[%clk 0:01:44.8]}
37... Qd6+ {[%clk 0:02:08.9]} 38. Ka2 {[%clk 0:01:37.5]} 38... Qf8 {[%clk
0:01:57]} 39. Qh1+ {[%clk 0:01:31.3]} 39... Ka7 {[%clk 0:01:32.5]} 40. Nc6+
{[%clk 0:01:29.8]} 40... Ka8 {[%clk 0:01:25.8]} 41. Nd8+ {[%clk 0:01:28]} 41...
Kb8 {[%clk 0:01:23.7]} 42. Qb7# {[%clk 0:01:27.6]} 1-0

[Event "Live Chess"]
[Site "Chess.com"]
[Date "2023.05.20"]
[Round "-"]
[White "Jeffaroow"]
[Black "vinni3012"]
[Result "0-1"]
[WhiteElo "451"]
[BlackElo "1881"]
[TimeControl "300"]
[EndTime "9:43:56 PDT"]
[Termination "vinni3012 won by resignation"]

1. e4 {[%clk 0:04:58.3]} 1... c6 {[%clk 0:04:58.8]} 2. Nf3 {[%clk 0:04:56.6]}
2... d5 {[%clk 0:04:58.7]} 3. Nc3 {[%clk 0:04:52.5]} 3... dxe4 {[%clk
0:04:56.6]} 4. Nxe4 {[%clk 0:04:50.9]} 4... Nf6 {[%clk 0:04:56.5]} 5. Nxf6+
{[%clk 0:04:49.6]} 5... exf6 {[%clk 0:04:55.7]} 6. Qe2+ {[%clk 0:04:43.6]} 6...
Qe7 {[%clk 0:04:51.1]} 7. b3 {[%clk 0:04:35.4]} 7... Bg4 {[%clk 0:04:42.7]} 8.
Ba3 {[%clk 0:04:32.8]} 8... Qxe2+ {[%clk 0:04:40.7]} 9. Bxe2 {[%clk 0:04:31.6]}
9... Bxa3 {[%clk 0:04:39.5]} 10. h3 {[%clk 0:04:27.6]} 10... Bxf3 {[%clk
0:04:22.7]} 11. Bxf3 {[%clk 0:04:25.2]} 11... O-O {[%clk 0:04:21.8]} 12. O-O
{[%clk 0:04:15.8]} 12... Nd7 {[%clk 0:04:17]} 13. Rae1 {[%clk 0:04:10.8]} 13...
Rfe8 {[%clk 0:04:13.6]} 14. Rxe8+ {[%clk 0:04:08.5]} 14... Rxe8 {[%clk
0:04:13.5]} 15. Bg4 {[%clk 0:04:06.9]} 15... Ne5 {[%clk 0:04:03.7]} 16. Re1
{[%clk 0:04:03.7]} 16... Nf3+ {[%clk 0:03:54.3]} 0-1